Cogmind - Beta 15 @@@ ROGUE MODE // 2025.07.26 @ 17:29:04 Player: aoemica Result: Heading to fleet! Performance ------------- Evolutions (9) 4500 Regions Visited (20) 4000 Robots Destroyed (386) 1930 Value Destroyed (20497) 20497 Prototype IDs (46) 920 Alien Tech Used (5) 1000 Bonus (29711) 29711 TOTAL SCORE: 62558 Bonus ------- Pure Core 10651 Triggered High Security 500 High Alert Combat Kills 5560 Follower Combat Kills 68 Met Zhirov 300 Used Core Reset Matrix 3000 Win 3000 Challenge Win 7000 Friendly Fire -368 Cogmind --------- Core Integrity 1548/1600 Matter 290/300 Energy 1341/1365 System Corruption 20% Temperature Cool (15) Movement Treading (150) Location To Fleet Rendezvous Parts ------- > --- POWER (4) -------- Fusion Reactor Light Antimatter Reactor Quantum Reactor Quantum Reactor > --- PROPULSION (6) --- Advanced Heavy Treads Biometal Heavy Treads Advanced Heavy Siege Treads > --- UTILITY (10) ----- Advanced Cooling System Advanced Energy Well (fused) Advanced Sensor Array Advanced Launcher Guidance Computer Core Analyzer Heavy Armor Plating Centrium Medium Armor Plating Focal Shield Advanced Force Field > --- WEAPON (6) ------- Enhanced Nova Cannon Hypervelocity Multirail (fused) Compact Tesla Bomb Launcher Gamma Bomb Array Sigix Broadsword > --- INVENTORY (0) ---- (None) Peak State ------------ > --- POWER ------------ Fusion Reactor Quantum Reactor Quantum Reactor Quantum Reactor > --- PROPULSION ------- Advanced Heavy Treads Biometal Heavy Treads Advanced Heavy Siege Treads > --- UTILITY ---------- Advanced Cooling System Advanced Energy Well Advanced Sensor Array IFF Parser Advanced Launcher Guidance Computer Core Analyzer Improved Transmission Jammer Centrium Medium Armor Plating Focal Shield Advanced Force Field > --- WEAPON ----------- Enhanced Nova Cannon Hypervelocity Multirail Compact Tesla Bomb Launcher Gamma Bomb Array Sigix Broadsword > --- INVENTORY -------- (None) [Rating: 216] Favorites ----------- Power Quantum Reactor Engine Improved Ion Engine Power Core Neutrino Core Reactor Quantum Reactor Propulsion Biometal Medium Treads Treads Biometal Medium Treads Wheel Armored Huge Wheel Utility Core Analyzer Device Advanced Cooling System Storage Advanced Energy Well Processor Core Analyzer Hackware Improved System Shield Protection Centrium Medium Armor Plating Weapon Enhanced Autogun Energy Gun Improved EM Shotgun Energy Cannon Improved Matter Neutralizer Ballistic Gun Enhanced Autogun Ballistic Cannon Hypervelocity Mass Driver Launcher Compact Tesla Bomb Launcher Special Weapon CPS Tube Slashing Weapon Sigix Broadsword Build | -11 -10 -10 -9 -9 -9 -8 -8 -7 -6 -5 -4 -4 -4 -4 -3 -3 -3 -2 -2 -1 ------- Run | Yrd Mat Min Mat Min Exi Min Mat Fac Fac Fac Fac Upp Upp Zhi Pro Res Qua Res Tes Acc Slots Evolved 18 | . . . 2 . . . 2 2 2 2 2 . . . . 2 . 2 . 2 Power 3 | . . . . . . . . . . 1 . . . . . 1 . . . 1 Propulsion 4 | . . . 1 . . . . 1 . . 1 . . . . 1 . . . . Utility 7 | . . . . . . . 1 1 2 1 . . . . . . . 1 . 1 Weapon 4 | . . . 1 . . . 1 . . . 1 . . . . . . 1 . . Parts Attached 182 | 7 2 . 19 1 . . 24 9 4 10 21 5 1 4 3 17 31 7 2 15 Power 27 | 1 . . 2 . . . 3 2 1 3 4 . . 1 . 1 5 . 1 3 Engine 7 | 1 . . 2 . . . 1 1 1 1 . . . . . . . . . . Core 8 | . . . . . . . 2 1 . 2 3 . . . . . . . . . Reactor 12 | . . . . . . . . . . . 1 . . 1 . 1 5 . 1 3 Propulsion 42 | 2 . . 8 . . . 6 2 . 2 4 . . . 1 8 3 3 . 3 Treads 36 | 2 . . 8 . . . 4 2 . 2 4 . . . . 5 3 3 . 3 Leg . | . . . . . . . . . . . . . . . . . . . . . Wheel 6 | . . . . . . . 2 . . . . . . . 1 3 . . . . Hover . | . . . . . . . . . . . . . . . . . . . . . Flight . | . . . . . . . . . . . . . . . . . . . . . Utility 61 | 2 . . 2 . . . 5 5 3 4 5 4 . 3 . 3 17 2 . 6 Device 39 | 2 . . 1 . . . 5 2 2 2 4 1 . 1 . 2 12 2 . 3 Storage 1 | . . . . . . . . . . . . . . 1 . . . . . . Processor 6 | . . . . . . . . 1 . 1 . 1 . . . 1 2 . . . Hackware 1 | . . . . . . . . . 1 . . . . . . . . . . . Protection 14 | . . . 1 . . . . 2 . 1 1 2 . 1 . . 3 . . 3 Artifact . | . . . . . . . . . . . . . . . . . . . . . Weapon 52 | 2 2 . 7 1 . . 10 . . 1 8 1 1 . 2 5 6 2 1 3 Energy Gun 8 | . . . 4 . . . 3 . . . . 1 . . . . . . . . Energy Cannon 11 | . . . 1 . . . 1 . . . 1 . . . . 3 3 . . 2 Ballistic Gun 16 | 2 2 . . 1 . . 6 . . . 3 . . . 1 . . . 1 . Ballistic Cannon 8 | . . . 1 . . . . . . . 3 . . . . 2 1 1 . . Launcher 5 | . . . . . . . . . . . 1 . . . 1 . 1 1 . 1 Special Weapon 2 | . . . . . . . . . . 1 . . 1 . . . . . . . Impact Weapon . | . . . . . . . . . . . . . . . . . . . . . Slashing Weapon 2 | . . . 1 . . . . . . . . . . . . . 1 . . . Piercing Weapon . | . . . . . . . . . . . . . . . . . . . . . Special Melee Weapon . | . . . . . . . . . . . . . . . . . . . . . Unidentified Prototypes 17 | . . . 1 . . . 1 . . . 2 1 . 6 . 1 4 . 1 . Corrupted Parts 9 | . . . . . . . . . . . . . . . 1 . 8 . . . System Corruption 77 | . . . . . . . . . . . . . . . 10 . 67 . . . Parts Lost 12 | . . . 1 . . . 7 . . . 1 . . . 1 . . . . 2 Power . | . . . . . . . . . . . . . . . . . . . . . Propulsion 1 | . . . . . . . 1 . . . . . . . . . . . . . Utility 4 | . . . 1 . . . . . . . 1 . . . . . . . . 2 Weapon 7 | . . . . . . . 6 . . . . . . . 1 . . . . . Highest Loss Streak 7 | . . . 1 . . . 7 . . . 1 . . . 1 . . . . 1 To Critical Strikes . | . . . . . . . . . . . . . . . . . . . . . Average Backups . | . . . . . . . . . . . . . . . . . . . . . Power . | . . . . . . . . . . . . . . . . . . . . . Propulsion . | . . . . . . . . . . . . . . . . . . . . . Utility . | . . . . . . . . . . . . . . . . . . . . . Weapon . | . . . . . . . . . . . . . . . . . . . . . Tool/Special . | . . . . . . . . . . . . . . . . . . . . . Unused Backups . | . . . . . . . . . . . . . . . . . . . . . Power . | . . . . . . . . . . . . . . . . . . . . . Propulsion . | . . . . . . . . . . . . . . . . . . . . . Utility . | . . . . . . . . . . . . . . . . . . . . . Weapon . | . . . . . . . . . . . . . . . . . . . . . Tool/Special . | . . . . . . . . . . . . . . . . . . . . . Average Slot Usage (%) 89 | . 100 100 95 100 100 100 91 90 90 89 89 94 95 70 88 93 93 85 83 83 Engine 2 | . 14 14 11 11 11 11 5 5 6 6 . . . . . . . . . . Core 2 | . . . . . . . 3 1 . 2 7 10 10 6 5 4 1 . . . Reactor 7 | . . . . . . . . . . . 2 . . 3 5 8 11 12 12 14 Treads 16 | . 28 28 30 33 33 33 18 13 13 11 14 15 15 15 14 12 21 15 12 11 Wheel 2 | . . . . . . . 3 7 6 5 5 5 5 5 5 8 . . . . Device 21 | . 28 28 21 22 22 22 26 22 21 24 21 24 25 20 20 19 17 19 20 22 Storage 2 | . . . . . . . . . . . . . . 3 5 4 4 4 4 3 Processor 5 | . . . . . . . . . 6 6 5 5 5 5 5 4 9 8 8 7 Protection 4 | . . . . . . . . 6 6 5 5 8 10 10 10 6 3 4 4 3 Energy Gun 2 | . . . 7 22 22 22 17 . . . . 1 5 . 5 1 . . . . Energy Cannon 3 | . . . 8 8 . . . . . . 2 5 5 . 5 5 6 . . 2 Ballistic Gun 6 | . 28 28 9 2 11 11 14 30 26 22 10 . . . 2 1 . . 1 3 Ballistic Cannon 3 | . . . 5 . . . . . . . 10 13 9 . . 3 3 7 6 . Launcher 4 | . . . . . . . . . . . 1 5 5 . 5 9 8 8 8 7 Slashing Weapon 1 | . . . . . . . . . . . . . . . . . 1 4 4 3 Peak Build Rating 216 | 9 9 9 19 20 20 20 37 47 57 74 112 120 118 112 120 159 180 194 201 216 Average Rating 127 | 4 9 9 13 19 20 20 25 43 55 69 99 115 117 85 111 135 167 191 195 213 On Entrance 77 | . 9 9 9 19 20 20 20 37 47 57 74 112 118 114 112 115 159 176 194 199 Naked Turns . | . . . . . . . . . . . . . . . . . . . . . Heaviest Build 156 | 9 11 11 21 19 19 19 23 32 39 64 111 103 97 85 94 117 120 136 136 156 Greatest Support 225 | 40 40 40 69 69 69 69 69 28 40 28 86 28 28 87 87 215 215 210 210 225 Greatest Overweight (x) 3 | . . . . . . . . 1 1 2 3 3 3 3 3 2 . . . . Average Overweight (x) . | . . . . . . . . . . 1 2 2 3 1 2 . . . . . Largest Inventory Capacity . | . . . . . . . . . . . . . . . . . . . . . Average Capacity . | . . . . . . . . . . . . . . . . . . . . . Most Carried . | . . . . . . . . . . . . . . . . . . . . . Average Carried . | . . . . . . . . . . . . . . . . . . . . . Final Capacity . | . . . . . . . . . . . . . . . . . . . . . Final Carried . | . . . . . . . . . . . . . . . . . . . . . Class Distribution -------------------- 28% | Tank 22% | Generator-Tank 19% | Alien-Tank 11% | Gunner 7% | Scavenger-Tank 5% | Mutant 3% | Scavenger-Gunner Dominant Class ---------------- Mutant | -10/Materials Mutant | -10/Mines Gunner | -9/Materials Gunner | -9/Mines Gunner | -9/Exiles Gunner | -8/Mines Scavenger-Gunner | -8/Materials Scavenger-Tank | -7/Factory Tank | -6/Factory Tank | -5/Factory Tank | -4/Factory Tank | -4/Upper Caves Tank | -4/Upper Caves Mutant | -4/Zhirov Tank | -3/Proximity Caves Tank | -3/Research Alien-Tank | -3/Quarantine Alien-Tank | -2/Research Alien-Tank | -2/Testing Generator-Tank | -1/Access Resources | -11 -10 -10 -9 -9 -9 -8 -8 -7 -6 -5 -4 -4 -4 -4 -3 -3 -3 -2 -2 -1 ----------- Run | Yrd Mat Min Mat Min Exi Min Mat Fac Fac Fac Fac Upp Upp Zhi Pro Res Qua Res Tes Acc Matter Collected 9603 | 300 10 . 516 6 . 24 326 485 302 275 2070 283 116 . 248 187 1640 520 434 1861 Remotely . | . . . . . . . . . . . . . . . . . . . . . Salvage Created 23379 | 179 29 . 1093 68 . 50 419 473 217 240 4124 437 685 . 618 456 2587 1525 1143 9036 Parts 1086 | 12 2 . 72 6 . 7 20 22 18 4 179 19 25 . 24 18 138 89 50 381 Haulers Intercepted 12 | . . . 4 . . . 3 . . 1 3 . . . . 1 . . . . Recyclers Shooed 15 | . . . 2 . . . . . 4 1 1 . . . . 1 1 2 1 2 Parts Field Recycled . | . . . . . . . . . . . . . . . . . . . . . Retrieved Matter . | . . . . . . . . . . . . . . . . . . . . . Parts Self-Destructed 11 | . . . . . . . . . . . . 9 2 . . . . . . . Prevented 58 | . . . . . . . . . . . . 11 23 . 24 . . . . . Kills | -11 -10 -10 -9 -9 -9 -8 -8 -7 -6 -5 -4 -4 -4 -4 -3 -3 -3 -2 -2 -1 ------- Run | Yrd Mat Min Mat Min Exi Min Mat Fac Fac Fac Fac Upp Upp Zhi Pro Res Qua Res Tes Acc Combat Hostiles Destroyed 282 | . . . 18 4 . 3 4 7 6 . 50 6 8 . 9 7 31 22 8 99 Guns 89 | . . . 7 3 . 3 3 7 6 . 18 . . . . . . . 3 39 Cannons 47 | . . . 11 . . . . . . . 12 . . . . 3 9 9 2 1 AOE 65 | . . . . 1 . . . . . . 7 5 4 . 2 3 5 13 1 24 Classes Destroyed 19 | 2 1 . 8 . . . 2 1 . . 1 1 . . 1 . . . . 2 Worker 23 | . . . 1 . . . . . . . 5 . . . . 1 . 4 4 8 Builder 23 | . . . 1 . . . . . . . 3 . . . . . 1 4 5 9 Tunneler 5 | 4 . . 1 . . . . . . . . . . . . . . . . . Hauler 12 | . . . 4 . . . 3 . . 1 3 . . . . 1 . . . . Recycler 19 | 1 . . 2 . . . 1 1 . 1 2 . . . . . 2 3 3 3 Mechanic 5 | . 1 . 1 . . . . . . . 1 . . . . . . . . 2 Operator 5 | . . . . . . . 2 1 . . . . . . . . . . 1 1 Drone 2 | . . . . . . . . . . . . . . . 2 . . . . . Watcher 10 | . . . 2 . . . . . . . 3 . . . . . 2 . . 3 Swarmer 48 | . . . 8 4 . 3 1 . 4 . 8 5 . . . 3 . 11 . 1 Saboteur 4 | . . . . . . . . . . . . . . . . . . . . 4 Grunt 89 | . . . 6 . . . 1 2 . . 20 . 7 . 5 1 12 1 1 33 Brawler 11 | . . . . . . . 1 . 1 . 1 . 1 . . . . . . 7 Duelist 5 | . . . 1 . . . . . . . . . . . . . 1 . . 3 Protector 4 | . . . . . . . . . . . . . . . . . . . . 4 Researcher 1 | . . . . . . . . . . . . 1 . . . . . . . . Sentry 16 | . . . 3 . . . 1 3 . . 4 1 . . . . . 2 . 2 Hunter 22 | . . . . . . . . . . . 6 . . . 2 . 2 . 2 10 Programmer 70 | . . . . . . . . 2 1 . 11 . . . . 3 5 8 5 35 Quarantine Guard 11 | . . . . . . . . . . . . . . . . . 11 . . . Thug 1 | . . . 1 . . . . . . . . . . . . . . . . . Best Kill Streak 13 | 4 1 . 4 4 . 3 3 3 3 1 13 5 4 . 5 3 9 10 5 9 Combat Bots Only 10 | . . . 3 4 . 3 1 2 3 . 10 5 4 . 5 3 6 7 3 7 Max Kills in Single Turn 4 | 1 1 . 2 2 . 1 2 1 2 1 2 2 2 . 1 2 3 4 3 4 Gunslinging 1 | . . . . . . . 1 . 1 . 1 . . . . . . . . . Exploded 4 | . . . . 1 . . . . . . 2 2 2 . 1 2 1 4 1 4 Melee . | . . . . . . . . . . . . . . . . . . . . . Uniques/NPCs Destroyed . | . . . . . . . . . . . . . . . . . . . . . Combat | -11 -10 -10 -9 -9 -9 -8 -8 -7 -6 -5 -4 -4 -4 -4 -3 -3 -3 -2 -2 -1 -------- Run | Yrd Mat Min Mat Min Exi Min Mat Fac Fac Fac Fac Upp Upp Zhi Pro Res Qua Res Tes Acc Hostile Shots Fired 942 | . . . 53 8 . 18 103 40 28 4 223 5 6 . 22 21 56 62 53 240 Missed 335 | . . . 14 3 . 5 35 18 9 3 87 4 2 . 9 4 22 18 20 82 Hits 607 | . . . 39 5 . 13 68 22 19 1 136 1 4 . 13 17 34 44 33 158 Melee 1 | . . . 1 . . . . . . . . . . . . . . . . . Projectile 606 | . . . 38 5 . 13 68 22 19 1 136 1 4 . 13 17 34 44 33 158 AOE 3 | . . . . . . . . . . . 3 . . . . . . . . . Critical Strikes 37 | . . . 1 . . . 5 2 1 . 8 . . . 1 3 2 3 1 10 Part Disruptions 6 | . . . . . . . . . . . . . . . . 1 1 1 1 2 Damage Taken 8291 | . 24 . 499 78 . 104 1095 235 246 143 2264 18 39 . 193 200 549 544 364 1696 Core 466 | . 24 . 67 . . 23 113 30 23 . 60 . . . 20 . 34 9 11 52 Absorbed by Shields 4553 | . . . . . . . . . 89 50 686 . 41 . 201 210 566 565 386 1759 Reduced by Siege Mode 114 | . . . . . . . . . . . . . . . . . . . . 114 Ignored by Resistances 297 | . . . . . . . . . . . . . . . . . . 81 36 180 Regen/Repaired (Parts) 877 | . . . . . . . 92 . . . . . . . . . 45 158 134 448 Core Remaining (%) 92 | 100 . 90 . . . 77 79 95 97 100 . . . . 86 . 97 . 98 96 Volleys Fired 697 | 15 5 . 58 3 . 8 26 27 17 11 120 17 9 . 32 19 92 35 28 175 Largest 5 | 2 2 . 3 2 . 3 4 4 4 4 5 2 1 . 4 3 3 2 2 4 Hottest 284 | 40 40 . 158 90 . 123 190 100 100 100 284 112 49 . 231 277 280 129 129 189 Shots Fired 1404 | 30 10 . 155 6 . 22 72 108 68 41 317 20 12 . 38 29 166 58 41 211 Gun 730 | 30 10 . 86 6 . 22 67 108 68 40 151 . 1 . 18 . . . 10 113 Cannon 410 | . . . 69 . . . 5 . . . 137 11 2 . 2 23 76 46 24 15 Launcher 262 | . . . . . . . . . . . 29 9 9 . 17 6 90 12 7 83 Special 2 | . . . . . . . . . . 1 . . . . 1 . . . . . Kinetic 883 | 30 10 . 89 . . 8 35 108 68 40 267 8 1 . . 5 16 46 34 118 Thermal 170 | . . . 40 . . . 23 . . . . . 1 . 18 18 60 . . 10 Explosive . | . . . . . . . . . . . . . . . . . . . . . Electromagnetic 349 | . . . 26 6 . 14 14 . . . 50 12 10 . 19 6 90 12 7 83 Robot Hit Streak 27 | 10 12 . 12 5 . 3 10 10 11 20 10 13 5 . 1 11 27 15 7 17 Robot Miss Streak 7 | 2 1 . 5 3 . 7 5 4 3 5 5 1 1 . 6 . 3 3 3 6 Penetration Max 1 | . . . . . . . . . . . . . . . . . . . . 1 Secondary Targets 13 | . . . 2 2 . 1 2 2 2 . 2 . . . . . . . . . Max Gunslinging Chain 2 | . . . 1 1 . 1 2 1 1 . 1 . . . . . . . . . Shots Hit Robots 754 | 22 8 . 91 4 . 7 51 67 37 26 156 5 5 . 2 11 45 34 31 152 Core Hits 689 | 8 3 . 41 4 . 3 14 18 19 7 110 8 11 3 11 13 58 56 27 275 Critical Kills 63 | 1 . . . . . . . . 1 . 11 1 . . . . . . 4 45 Critical Parts Destroyed 88 | 1 . . . . . . 1 1 . . 13 1 . . . . . . 7 64 Critical Strikes 162 | 2 . . . . . . 2 1 1 . 29 2 . . . . . 2 13 110 Burn 1 | . . . . . . . 1 . . . . . . . . . . . . . Destroy 154 | 2 . . . . . . 1 1 1 . 26 2 . . . . . . 11 110 Blast 5 | . . . . . . . . . . . 3 . . . . . . 2 . . Sever 2 | . . . . . . . . . . . . . . . . . . . 2 . Melee Attacks 64 | . . . 2 . . . . . . . . . . . . . 1 19 33 9 Impact . | . . . . . . . . . . . . . . . . . . . . . Slashing 64 | . . . 2 . . . . . . . . . . . . . 1 19 33 9 Piercing . | . . . . . . . . . . . . . . . . . . . . . Sneak Attacks 18 | . . . 2 . . . . . . . . . . . . . . 5 9 2 Combat Hostiles . | . . . . . . . . . . . . . . . . . . . . . Follow-up Attacks . | . . . . . . . . . . . . . . . . . . . . . Damage Inflicted 38043 | 188 63 . 1814 105 . 85 948 1219 751 426 6321 442 882 212 807 1075 4427 3854 2461 11963 Guns 7574 | 188 60 . 858 57 . 85 760 1219 751 426 1650 . . . . . . . 98 1422 Cannons 7086 | . . . 804 . . . 132 . . . 2202 149 . . . 565 1096 1272 434 432 Explosions 20291 | . . . . 33 . . 52 . . . 2467 293 882 . 807 510 3330 1606 614 9697 Melee 2841 | . . . 138 . . . . . . . . . . . . . . 976 1315 412 Ramming 251 | . 3 . 14 15 . . 4 . . . 2 . . 212 . . 1 . . . Kinetic 11087 | 188 60 . 905 . . 19 374 1219 751 426 3330 35 . . . 168 386 1272 532 1422 Thermal 4131 | . . . 389 33 . . 302 . . . . . . . . 480 1151 186 . 1590 Explosive 563 | . . . . . . . . . . . 75 . . . . . . 488 . . Electromagnetic 19170 | . . . 368 57 . 66 268 . . . 2914 407 882 . 807 427 2889 932 614 8539 Impact . | . . . . . . . . . . . . . . . . . . . . . Slashing 2841 | . . . 138 . . . . . . . . . . . . . . 976 1315 412 Piercing . | . . . . . . . . . . . . . . . . . . . . . Highest Corruption 68 | . . . . . . . 1 . 1 . 7 7 7 7 18 3 68 5 10 20 Average Corruption 8 | . . . . . . . 1 . 1 . 4 7 7 7 12 2 6 3 7 12 Corruption Purged . | . . . . . . . . . . . . . . . . . . . . . Corruption Blocked . | . . . . . . . . . . . . . . . . . . . . . Effects 380 | . . . . . . . 3 . 4 . 46 19 17 11 30 8 47 3 28 164 Message Errors 94 | . . . . . . . 2 . 2 . 10 4 6 2 9 2 10 1 5 41 Matter Fused 85 | . . . . . . . 1 . . . 11 6 2 3 5 2 17 . 7 31 Heat Flow Errors 44 | . . . . . . . . . . . 5 4 2 1 2 . 7 . 5 18 Energy Discharges 43 | . . . . . . . . . . . 3 1 2 1 3 1 6 1 . 25 Parts Rejected 4 | . . . . . . . . . . . 1 . 1 . . . 1 . . 1 Parts Fused 6 | . . . . . . . . . 1 . 1 . . 1 . 1 1 . 1 . Data Loss (minor) 45 | . . . . . . . . . . . 4 2 1 2 6 . . . 6 24 Data Loss (major) 27 | . . . . . . . . . . . 5 1 . 1 3 1 3 1 . 12 Misfires 16 | . . . . . . . . . . . 4 1 3 . 2 . . . 2 4 Alerts 9 | . . . . . . . . . 1 . 1 . . . . . 2 . 1 4 Weapon Failures 7 | . . . . . . . . . . . 1 . . . . 1 . . 1 4 Overload Shots . | . . . . . . . . . . . . . . . . . . . . . Overflow Damage 1271 | . . . 51 . . . . . . . 51 24 . 9 30 68 56 394 396 192 Projectiles 260 | . . . 3 . . . . . . . 28 24 . . . 68 48 2 51 36 Explosions 201 | . . . . . . . . . . . 23 . . . 30 . 8 130 . 10 Melee 810 | . . . 48 . . . . . . . . . . 9 . . . 262 345 146 Knockbacks 37 | . . . 4 . . . 1 . . . 14 1 . . . 2 3 6 6 . Impact 1 | . . . . . . . 1 . . . . . . . . . . . . . Kinetic 36 | . . . 4 . . . . . . . 14 1 . . . 2 3 6 6 . Secondary . | . . . . . . . . . . . . . . . . . . . . . Self-Inflicted Damage 564 | . . . 9 37 . . . . . . 39 . . . 150 12 95 152 11 59 Shots 28 | . . . 1 2 . . . . . . 2 . . . 7 2 5 3 1 5 Rammed 61 | . 1 . 1 6 . . . . . . . . . 53 . . . . . . Targets Rammed 65 | . 1 . 2 6 . . 1 . . . 1 . . 53 . . 1 . . . Kicked . | . . . . . . . . . . . . . . . . . . . . . Crushed 4 | . . . 1 . . . 1 . . . 1 . . . . . 1 . . . Highest Temperature 305 | . . . 226 16 . 81 132 84 53 24 305 132 126 59 185 198 293 . 242 237 Average Temperature 82 | . . . 61 11 . 39 49 40 34 11 61 56 62 59 68 122 87 . 129 71 Received Heat Transfer 1240 | . . . 126 . . . 639 45 55 . 215 . 13 . 36 . 10 12 . 89 Siege Activations 10 | . . . . . . . . . . . . . . . . . . 2 . 8 Total Turns 1937 | . . . . . . . . . . . . . . . . . . 15 . 1922 Longest Duration 414 | . . . . . . . . . . . . . . . . . . 9 . 414 Martial Activations . | . . . . . . . . . . . . . . . . . . . . . Shielding Activations . | . . . . . . . . . . . . . . . . . . . . . Robots Disrupted 3 | . . . . . . . . . . . . . . . . . 1 . 1 1 Combat Hostiles 3 | . . . . . . . . . . . . . . . . . 1 . 1 1 Robots Corrupted 86 | . . . . . . . 1 . . . 15 1 4 1 7 2 17 . 2 36 Combat Hostiles 82 | . . . . . . . 1 . . . 13 1 4 1 7 1 17 . 2 35 Parts Fried 221 | . . . 2 . . . . . . . 23 2 8 . 11 2 51 4 6 112 Impact Corruptions 3 | . . . . . . . . . . . . . . 3 . . . . . . Robots Melted 1 | . . . . . . . . . . . . . . . . . 1 . . . Combat Hostiles . | . . . . . . . . . . . . . . . . . . . . . Parts Melted 7 | . . . . . . . 1 2 . . 2 . . . . . 2 . . . Heat Transferred 3681 | . . . 703 50 . . 677 . . . . . . . . 111 942 50 . 1148 Parts Sabotaged . | . . . . . . . . . . . . . . . . . . . . . Parts Stolen . | . . . . . . . . . . . . . . . . . . . . . Parts Stripped . | . . . . . . . . . . . . . . . . . . . . . Power Chain Reactions 29 | . . . 1 2 . . 1 . . . . . 1 . . 1 4 2 1 16 Alert | -11 -10 -10 -9 -9 -9 -8 -8 -7 -6 -5 -4 -4 -4 -4 -3 -3 -3 -2 -2 -1 ------- Run | Yrd Mat Min Mat Min Exi Min Mat Fac Fac Fac Fac Upp Upp Zhi Pro Res Qua Res Tes Acc Maximum Alert Level 5 | . . . . . . . . . . . 4 . . . . 1 2 2 2 5 Low Security (%) 40 | 100 100 100 100 100 . 100 100 100 100 100 25 . . . . 88 8 . . 13 Level 1 20 | . . . . . . . . . . . 47 . . . . 11 23 68 76 10 Level 2 19 | . . . . . . . . . . . 9 . . . . . 67 30 23 10 Level 3 5 | . . . . . . . . . . . 6 . . . . . . . . 19 Level 4 8 | . . . . . . . . . . . 11 . . . . . . . . 25 Level 5 5 | . . . . . . . . . . . . . . . . . . . . 19 High Security . | . . . . . . . . . . . . . . . . . . . . . Max Security . | . . . . . . . . . . . . . . . . . . . . . Peak Influence 2532 | 10 30 . 165 147 . 64 36 50 70 32 1272 . . . . 229 547 658 458 2532 Initial 366 | . . . . 50 . . 16 . 11 25 . . . . . 150 49 273 366 255 Average 447 | 1 4 . 91 26 . 49 5 8 9 5 398 . . . . 151 420 325 382 1040 Influence Increases 9778 | 25 44 . 530 97 . 74 172 210 150 75 1808 155 210 5 215 390 1322 771 458 3067 Destroy 0b10 Robot/C 5560 | . . . 360 80 . 60 80 140 120 40 1000 120 160 . 140 140 620 440 160 1900 Destroy 0b10 Robot/NC 560 | 25 5 . 60 . . . 30 10 . 15 85 10 . 5 10 10 25 55 65 150 Destroy Leader 1132 | . . . 82 10 . 10 26 60 30 12 202 10 20 . 20 20 154 80 30 366 Allied During Kill 10 | . . . 7 . . . . . . 3 . . . . . . . . . . Successful Hack 126 | . 9 . . . . . . . . 5 56 . . . . . 38 4 14 . Select Force Hacks 30 | . 30 . . . . . . . . . . . . . . . . . . . Disable Machine 795 | . . . 15 . . . 15 . . . 255 . . . . 30 270 30 105 75 Destroy Structure 860 | . . . 6 7 . 4 6 . . . 120 . . . . 40 140 162 84 291 Advance Influence 150 | . . . . . . . . . . . . . . . . 150 . . . . Lose Combat Pursuer 555 | . . . . . . . 15 . . . 90 15 30 . 45 . 75 . . 285 Influence Decreases 7246 | 25 44 . 400 227 . 30 216 186 120 129 542 747 383 506 215 302 924 605 684 961 Entered New Map 1958 | . . . . 80 . . 28 . 13 29 . 469 129 501 . . 39 213 286 171 Time Decay 5009 | 25 44 . 370 147 . 30 129 186 107 100 532 278 254 5 205 302 735 392 398 770 Lost Part 82 | . . . 10 . . . 32 . . . 10 . . . 10 . . . . 20 Lost Ally 20 | . . . 20 . . . . . . . . . . . . . . . . . Purge Threat 177 | . . . . . . . 27 . . . . . . . . . 150 . . . Squads Dispatched 65 | . 1 . . . . . 4 5 2 2 14 . . . . 2 4 4 3 24 Investigation 4 | . 1 . . . . . . . . . . . . . . . 2 . 1 . Extermination 30 | . . . . . . . . 2 1 1 6 . . . . 1 2 3 2 12 Reinforcement 13 | . . . . . . . 2 . 1 1 6 . . . . 1 . 1 . 1 Assault 15 | . . . . . . . 2 . . . 2 . . . . . . . . 11 Garrison 3 | . . . . . . . . 3 . . . . . . . . . . . . Intercept . | . . . . . . . . . . . . . . . . . . . . . Searches Triggered . | . . . . . . . . . . . . . . . . . . . . . Construction Impeded 5 | . . . . . . . . . . . 3 . . . . . . 1 . 1 Haulers Reinforced 4 | . . . . . . . . . 1 . 2 . . . . 1 . . . . Active Scanning Responses . | . . . . . . . . . . . . . . . . . . . . . Cargo Convoy Interrupts . | . . . . . . . . . . . . . . . . . . . . . Stealth | -11 -10 -10 -9 -9 -9 -8 -8 -7 -6 -5 -4 -4 -4 -4 -3 -3 -3 -2 -2 -1 --------- Run | Yrd Mat Min Mat Min Exi Min Mat Fac Fac Fac Fac Upp Upp Zhi Pro Res Qua Res Tes Acc Distress Signals 21 | . . . 1 . . . 4 . . . 9 . . . . 1 1 1 . 4 Communications Jammed 115 | . . . . . . . . 9 2 1 60 . . . . . . 2 9 32 Distress Signals 112 | . . . . . . . . 8 1 . 60 . . . . . . 2 9 32 Times Spotted 400 | . 2 . 32 3 . 3 24 20 19 8 83 4 8 . 10 9 32 24 12 107 Peak Tracking Total 10 | . 2 . 6 3 . 3 10 3 4 3 7 3 4 . 5 4 4 5 3 6 Tactical Retreats 24 | . . . . . . . 1 . . . 5 1 2 . 1 . 3 . . 11 Traps | -11 -10 -10 -9 -9 -9 -8 -8 -7 -6 -5 -4 -4 -4 -4 -3 -3 -3 -2 -2 -1 ------- Run | Yrd Mat Min Mat Min Exi Min Mat Fac Fac Fac Fac Upp Upp Zhi Pro Res Qua Res Tes Acc Traps Triggered 29 | . 1 . 2 . . . 2 1 1 4 6 . . . . 2 8 1 . 1 Indirectly 8 | . . . . . . . . . . . 3 . . . . . 3 1 . 1 Trap Hack Attempts . | . . . . . . . . . . . . . . . . . . . . . Triggered . | . . . . . . . . . . . . . . . . . . . . . Disarmed . | . . . . . . . . . . . . . . . . . . . . . Reprogrammed . | . . . . . . . . . . . . . . . . . . . . . Reused . | . . . . . . . . . . . . . . . . . . . . . Traps Extracted . | . . . . . . . . . . . . . . . . . . . . . Installed . | . . . . . . . . . . . . . . . . . . . . . Triggered . | . . . . . . . . . . . . . . . . . . . . . Machines | -11 -10 -10 -9 -9 -9 -8 -8 -7 -6 -5 -4 -4 -4 -4 -3 -3 -3 -2 -2 -1 ---------- Run | Yrd Mat Min Mat Min Exi Min Mat Fac Fac Fac Fac Upp Upp Zhi Pro Res Qua Res Tes Acc Machines Disabled 54 | . . . 1 . . . 1 . . . 17 . . . . 2 19 2 7 5 Max in Single Turn 4 | . . . 1 . . . 1 . . . 4 . . . . 2 2 1 1 1 Garrison Access 1 | . . . . . . . 1 . . . . . . . . . . . . . Machines Repaired . | . . . . . . . . . . . . . . . . . . . . . Machines Dismantled . | . . . . . . . . . . . . . . . . . . . . . Machines Sabotaged . | . . . . . . . . . . . . . . . . . . . . . Overloaded Fab Kills . | . . . . . . . . . . . . . . . . . . . . . Hacking | -11 -10 -10 -9 -9 -9 -8 -8 -7 -6 -5 -4 -4 -4 -4 -3 -3 -3 -2 -2 -1 --------- Run | Yrd Mat Min Mat Min Exi Min Mat Fac Fac Fac Fac Upp Upp Zhi Pro Res Qua Res Tes Acc Machines Accessed 55 | . 2 . 1 . 1 . 2 2 2 2 9 1 1 4 . 3 9 5 6 5 Terminals 32 | . 1 . 1 . . . 1 1 1 . 9 . . . . 3 6 3 3 3 Fabricators 1 | . . . . . . . . . . 1 . . . . . . . . . . Repair Stations 5 | . . . . . . . 1 . . . . . . . . . 2 1 1 . Recycling Units 2 | . 1 . . . . . . . . . . . . . . . . . . 1 Scanalyzers 1 | . . . . . . . . . . . . . . . . . . . 1 . Garrison Access 7 | . . . . . . . . 1 1 1 . . . . . . 1 1 1 1 Total Hacks 114 | . 5 . 3 . 1 . 5 6 3 4 19 1 1 17 . 3 21 11 8 6 Successful 45 | . 4 . . . 1 . 3 2 . 2 5 1 1 17 . . 5 2 2 . Failed 69 | . 1 . 3 . . . 2 4 3 2 14 . . . . 3 16 9 6 6 Catastrophic 22 | . . . 1 . . . . 1 1 1 6 . . . . 3 2 . 3 4 Database Lockouts . | . . . . . . . . . . . . . . . . . . . . . Manual 34 | . 4 . 3 . . . . . . 1 9 . . . . 3 6 3 4 1 Terminals 63 | . 3 . 3 . . . 3 4 2 . 19 . . . . 3 13 5 4 4 Fabricators 2 | . . . . . . . . . . 2 . . . . . . . . . . Repair Stations 12 | . . . . . . . 2 . . . . . . . . . 6 3 1 . Recycling Units 3 | . 2 . . . . . . . . . . . . . . . . . . 1 Scanalyzers 2 | . . . . . . . . . . . . . . . . . . . 2 . Garrison Access 12 | . . . . . . . . 2 1 2 . . . . . . 2 3 1 1 Terminal Hacks 31 | . 1 . . . 1 . 1 2 . . 3 1 1 17 . . 3 1 . . Record 6 | . . . . . 1 . . . . . . . . 5 . . . . . . Part Schematic 4 | . . . . . . . . . . . . . . 4 . . . . . . Robot Analysis 4 | . . . . . . . . . . . . . . 4 . . . . . . Prototype ID Bank 7 | . 1 . . . . . . 1 . . 1 . . 4 . . . . . . Open Door 2 | . . . . . . . . . . . . 1 1 . . . . . . . Open DSF 1 | . . . . . . . . . . . . . . . . . . 1 . . Branch Access Points 1 | . . . . . . . . . . . 1 . . . . . . . . . Unreport Threat 2 | . . . . . . . 1 . . . . . . . . . 1 . . . Locate Traps 2 | . . . . . . . . 1 . . 1 . . . . . . . . . Zone Layout 2 | . . . . . . . . . . . . . . . . . 2 . . . Fabricator Hacks 1 | . . . . . . . . . . 1 . . . . . . . . . . Network Status 1 | . . . . . . . . . . 1 . . . . . . . . . . Repair Station Hacks 3 | . . . . . . . 2 . . . . . . . . . 1 . . . Scan Component 2 | . . . . . . . 1 . . . . . . . . . 1 . . . Repair 1 | . . . . . . . 1 . . . . . . . . . . . . . Recycling Unit Hacks . | . . . . . . . . . . . . . . . . . . . . . Scanalyzer . | . . . . . . . . . . . . . . . . . . . . . Garrison Access Hacks 1 | . . . . . . . . . . . . . . . . . . 1 . . Unlock Access 1 | . . . . . . . . . . . . . . . . . . 1 . . Unauthorized Hacks 9 | . 3 . . . . . . . . 1 2 . . . . . 1 . 2 . Terminals 4 | . 2 . . . . . . . . . 2 . . . . . . . . . Botnet 3 | . 1 . . . . . . . . . 2 . . . . . . . . . Skim 1 | . 1 . . . . . . . . . . . . . . . . . . . Fabricators 1 | . . . . . . . . . . 1 . . . . . . . . . . Haulers 1 | . . . . . . . . . . 1 . . . . . . . . . . Repair Stations 2 | . . . . . . . . . . . . . . . . . 1 . 1 . Patch 2 | . . . . . . . . . . . . . . . . . 1 . 1 . Recycling Units 1 | . 1 . . . . . . . . . . . . . . . . . . . Tunnel 1 | . 1 . . . . . . . . . . . . . . . . . . . Scanalyzers 1 | . . . . . . . . . . . . . . . . . . . 1 . Researchers 1 | . . . . . . . . . . . . . . . . . . . 1 . Garrison Access . | . . . . . . . . . . . . . . . . . . . . . Data Cores Recovered 4 | . . . . . . . 1 2 . . . . . . . . . . 1 . Used 1 | . . . . . . . 1 . . . . . . . . . . . . . Hacking Detections 45 | . 2 . 1 . . . 2 2 2 2 9 . . . . 3 8 4 5 5 Full Trace Events 1 | . . . . . . . . . . . . . . . . . 1 . . . Feedback Events . | . . . . . . . . . . . . . . . . . . . . . Feedback Blocked . | . . . . . . . . . . . . . . . . . . . . . Robot Schematics Acquired 5 | . . . . . . . . . . . . . . . . . 5 . . . Robots Built . | . . . . . . . . . . . . . . . . . . . . . Authchips . | . . . . . . . . . . . . . . . . . . . . . Time . | . . . . . . . . . . . . . . . . . . . . . Total Robot Build Rating . | . . . . . . . . . . . . . . . . . . . . . Part Schematics Acquired 16 | . . . . . . . . . . . . . . 4 . . 12 . . . Parts Built . | . . . . . . . . . . . . . . . . . . . . . Authchips . | . . . . . . . . . . . . . . . . . . . . . Time . | . . . . . . . . . . . . . . . . . . . . . Total Part Build Rating . | . . . . . . . . . . . . . . . . . . . . . Parts Repaired 1 | . . . . . . . 1 . . . . . . . . . . . . . Time 26 | . . . . . . . 26 . . . . . . . . . . . . . Parts Recycled . | . . . . . . . . . . . . . . . . . . . . . Recycled Matter . | . . . . . . . . . . . . . . . . . . . . . Retrieved Matter . | . . . . . . . . . . . . . . . . . . . . . Retrieved Components . | . . . . . . . . . . . . . . . . . . . . . Parts Scanalyzed . | . . . . . . . . . . . . . . . . . . . . . Part Schematics Acquired . | . . . . . . . . . . . . . . . . . . . . . Parts Damaged . | . . . . . . . . . . . . . . . . . . . . . Bothacking | -11 -10 -10 -9 -9 -9 -8 -8 -7 -6 -5 -4 -4 -4 -4 -3 -3 -3 -2 -2 -1 ------------ Run | Yrd Mat Min Mat Min Exi Min Mat Fac Fac Fac Fac Upp Upp Zhi Pro Res Qua Res Tes Acc Used RIF Installer . | . . . . . . . . . . . . . . . . . . . . . Robots Hacked 1 | . . . . . . . . . . 1 . . . . . . . . . . Non-combat . | . . . . . . . . . . . . . . . . . . . . . Combat 1 | . . . . . . . . . . 1 . . . . . . . . . . Robot Hacks Applied 1 | . . . . . . . . . . 1 . . . . . . . . . . parse_system 1 | . . . . . . . . . . 1 . . . . . . . . . . Relay Couplers Released 8 | . . . . . . . 2 . . . . . . . . . . 3 . 3 Machine Destruction 2 | . . . . . . . 2 . . . . . . . . . . . . . Programmers 6 | . . . . . . . . . . . . . . . . . . 3 . 3 Fabnet Peak Effective % . | . . . . . . . . . . . . . . . . . . . . . Robots Rewired 2 | . . . . . . . . . . 1 1 . . . . . . . . . Allies Hacked . | . . . . . . . . . . . . . . . . . . . . . Hacks Repelled . | . . . . . . . . . . . . . . . . . . . . . Allies | -11 -10 -10 -9 -9 -9 -8 -8 -7 -6 -5 -4 -4 -4 -4 -3 -3 -3 -2 -2 -1 -------- Run | Yrd Mat Min Mat Min Exi Min Mat Fac Fac Fac Fac Upp Upp Zhi Pro Res Qua Res Tes Acc Total Allies 4 | . . 2 . . . . . . . 1 1 . . . . . . . . . Largest Group 2 | . . 2 2 . . . . . . 1 2 . . . . . . . . . Highest-Rated Group 59 | . . 51 51 . . . . . . 29 59 . . . . . . . . . Highest-Rated Ally 31 | . . 31 31 . . . . . . 29 30 . . . . . . . . . Total Orders 1 | . . . . . . . . . . . 1 . . . . . . . . . STAY 1 | . . . . . . . . . . . 1 . . . . . . . . . Ally Attacks 12 | . . . 4 . . . . . . 5 3 . . . . . . . . . Total Damage 133 | . . . 41 . . . . . . 57 35 . . . . . . . . . Kills 3 | . . . . . . . . . . 3 . . . . . . . . . . Allies Corrupted . | . . . . . . . . . . . . . . . . . . . . . Allies Melted . | . . . . . . . . . . . . . . . . . . . . . Intel | -11 -10 -10 -9 -9 -9 -8 -8 -7 -6 -5 -4 -4 -4 -4 -3 -3 -3 -2 -2 -1 ------- Run | Yrd Mat Min Mat Min Exi Min Mat Fac Fac Fac Fac Upp Upp Zhi Pro Res Qua Res Tes Acc Active Infowar (turns) 22471 | 42 211 213 995 857 380 60 720 1257 660 657 2625 607 545 503 753 674 3699 921 942 5150 Sensors 5032 | . . . . . . . . . . . . . . . . . . . . 5032 IFF 15513 | . . . . . . . . . . . 2049 607 545 503 753 674 3671 921 942 4848 Terrain 717 | 16 211 213 276 . . . . . . . . . . . . . 1 . . . Seismic 3885 | 42 211 213 995 857 380 60 720 407 . . . . . . . . . . . . Jamming 13571 | . . . . . . . . 850 660 657 576 . . . . 363 3690 921 942 4912 Robot Analysis Total 4 | . . . . . . . . . . . . . . 4 . . . . . . Derelict Logs Recovered 4 | . . . . 2 . . . . . . . . 2 . . . . . . . Drone Launches . | . . . . . . . . . . . . . . . . . . . . . Drone Recoveries . | . . . . . . . . . . . . . . . . . . . . . Exploration | -11 -10 -10 -9 -9 -9 -8 -8 -7 -6 -5 -4 -4 -4 -4 -3 -3 -3 -2 -2 -1 ------------- Run | Yrd Mat Min Mat Min Exi Min Mat Fac Fac Fac Fac Upp Upp Zhi Pro Res Qua Res Tes Acc Turns Passed 22611 | 163 211 213 995 857 380 60 720 1258 660 657 2635 607 545 511 753 674 3699 921 942 5150 Spaces Moved 10842 | 75 121 118 451 449 238 23 378 807 431 418 1546 369 360 310 459 451 1902 482 516 938 Core 5 | 5 . . . . . . . . . . . . . . . . . . . . Treads 5813 | 70 121 118 451 449 238 23 213 1 1 . 1 . . 55 86 148 1902 482 516 938 Legs . | . . . . . . . . . . . . . . . . . . . . . Wheels 5024 | . . . . . . . 165 806 430 418 1545 369 360 255 373 303 . . . . Hover . | . . . . . . . . . . . . . . . . . . . . . Flight . | . . . . . . . . . . . . . . . . . . . . . Fastest Speed 50 | 50 160 160 160 160 160 160 100 100 115 115 130 130 145 115 130 115 152 145 145 145 Average Speed 141 | 152 160 160 160 160 160 160 133 111 115 121 138 144 145 128 140 131 152 147 145 147 Slowest Speed 247 | 160 160 160 160 160 160 160 160 240 160 130 155 145 145 153 153 247 156 152 145 150 Overloaded Moves . | . . . . . . . . . . . . . . . . . . . . . Propulsion Burnouts . | . . . . . . . . . . . . . . . . . . . . . Robots Hopped . | . . . . . . . . . . . . . . . . . . . . . Potential Cave-ins . | . . . . . . . . . . . . . . . . . . . . . Cave-ins Triggered . | . . . . . . . . . . . . . . . . . . . . . Teleports 1 | . . . . . . . . . . . . . . 1 . . . . . . Exploration Rate (%) 38 | 4 39 21 39 65 55 14 39 21 12 13 47 62 61 60 69 16 95 17 47 20 Regions Visited 20 Branch Regions 10 Pre-discovered Areas 6 | . 1 . . 1 1 . . . . . . . . 3 . . . . . . Known Exits Taken 2 | . . . . . . . . . . . 1 . . . 1 . . . . . Unknown Exits Taken 18 | 1 1 1 1 1 1 1 1 1 1 1 . 1 1 1 . 1 1 1 1 . Scrap Searched 7 | . . . . 1 . . . . . . . 2 1 . 3 . . . . . Spaces Dug 137 | . . . . . . . . . . . 9 3 . . 11 21 21 14 15 43 Terrain Destroyed 410 | . . . 5 9 . 5 5 . . . 53 4 9 . 18 26 75 56 31 114 Melee 32 | . . . . . . . . . . . . . . . . . 1 12 15 4 Projectile 147 | . . . 1 . . 5 1 . . . 32 4 2 . 18 10 37 20 12 5 AOE 206 | . . . 4 9 . . 4 . . . 21 . 7 . . 16 37 24 3 81 Terrain Rammed . | . . . . . . . . . . . . . . . . . . . . . Walls Destroyed . | . . . . . . . . . . . . . . . . . . . . . Machines Disabled . | . . . . . . . . . . . . . . . . . . . . . Actions | -11 -10 -10 -9 -9 -9 -8 -8 -7 -6 -5 -4 -4 -4 -4 -3 -3 -3 -2 -2 -1 --------- Run | Yrd Mat Min Mat Min Exi Min Mat Fac Fac Fac Fac Upp Upp Zhi Pro Res Qua Res Tes Acc Total 16964 | 96 131 142 600 578 237 30 543 1145 579 557 1878 422 373 395 530 507 2550 595 604 4472 Wait 4836 | . 1 25 49 119 . . 95 296 124 93 152 23 2 . 36 4 440 40 22 3315 Move 10821 | 74 120 117 450 448 237 22 377 806 430 417 1545 368 359 309 458 450 1901 481 515 937 Hop . | . . . . . . . . . . . . . . . . . . . . . Pick Up . | . . . . . . . . . . . . . . . . . . . . . Fast Attach 210 | 7 . . 11 1 . . 19 4 3 8 21 7 2 17 3 16 60 10 3 18 Attach . | . . . . . . . . . . . . . . . . . . . . . Detach 9 | . . . . . . . . . 1 1 1 1 . 1 . 1 3 . . . Swap 41 | . 2 . 10 . . . 8 5 1 4 4 1 . . . 2 2 . . 2 Drop 191 | . 2 . 18 1 . . 17 7 1 10 19 5 1 15 1 15 50 10 3 16 Fire 697 | 15 5 . 58 3 . 8 26 27 17 11 120 17 9 . 32 19 92 35 28 175 Melee 64 | . . . 2 . . . . . . . . . . . . . 1 19 33 9 Ram . | . . . . . . . . . . . . . . . . . . . . . Kick . | . . . . . . . . . . . . . . . . . . . . . Crush 65 | . 1 . 2 6 . . 1 . . . 1 . . 53 . . 1 . . . Escape Stasis 4 | . . . . . . . . . 2 . 2 . . . . . . . . . Rewire 26 | . . . . . . . . . . 13 13 . . . . . . . . . Trap . | . . . . . . . . . . . . . . . . . . . . . Miscellaneous . | . . . . . . . . . . . . . . . . . . . . . Route ------- -11/Scrapyard -10/Materials -10/Mines -9/Materials (discovered 2 exits: *Mat / [*Min]) -9/Mines (discovered 2 exits: *Mat / *Exi) -9/Exiles -8/Mines -8/Materials -7/Factory -6/Factory -5/Factory -4/Factory (discovered 2 exits: *Upp x2) -4/Upper Caves -4/Upper Caves (discovered 2 exits: Res / *Zhi) -4/Zhirov -3/Proximity Caves -3/Research -3/Quarantine -2/Research (discovered 2 exits: *Tes / Gar) -2/Testing -1/Access To Fleet Rendezvous History --------- Turn | Location | Event 7 | -11/Scrapyard | Discovered new exit (range 15) 164 | -11/Scrapyard | Entered Materials 302 | -10/Materials | Build established: Mutant 344 | -10/Materials | Discovered new exit (range 10) 375 | -10/Materials | Entered Mines 399 | -10/Mines | Assembled infested the area 404 | -10/Mines | Assisted by a Guerilla fighting off Assembled 506 | -10/Mines | Discovered new exit (range 10) 588 | -10/Mines | Entered Materials 588 | -9/Materials | Accompanied by 2 allies 588 | -9/Materials | Evolved 2 slots: Propulsion x1, Weapon x1 593 | -9/Materials | Led the pair of lost Derelicts to an unsafe place 1010 | -9/Materials | Discovered new exit (range 6) 1260 | -9/Materials | Build established: Gunner 1290 | -9/Materials | Discovered new exit (range 16) 1583 | -9/Materials | Entered Mines 1605 | -9/Mines | Learned Materials garrison access intel 1682 | -9/Mines | Found a hidden stash of uninstalled traps 1988 | -9/Mines | Learned location of Storage (-7) 2263 | -9/Mines | A weapon hastily lodged in a ceiling crevice suddenly fell to the ground 2280 | -9/Mines | Discovered new exit (range 10) 2432 | -9/Mines | Deemed a non-threat by the Exiles lab entrance 2433 | -9/Mines | Discovered new exit (range 5) 2440 | -9/Mines | Entered Exiles 2484 | -9/Exiles | Met 8R-AWN 2504 | -9/Exiles | Met EX-HEX 2570 | -9/Exiles | Met EX-DEC 2576 | -9/Exiles | Learned location of Zion (-6) 2604 | -9/Exiles | Met EX-BIN 2804 | -9/Exiles | Discovered new exit (range 11) 2820 | -9/Exiles | Entered Mines 2848 | -8/Mines | Discovered new exit (range 16) 2880 | -8/Mines | Entered Materials 2880 | -8/Materials | Evolved 2 slots: Utility x1, Weapon x1 2881 | -8/Materials | Loaded intel: 1 garrison access location 2989 | -8/Materials | Met 7R-MNS 3295 | -8/Materials | Build established: Scavenger-Gunner 3437 | -8/Materials | Lost 7 parts (1n6w) 3532 | -8/Materials | Discovered new exit (range 15) 3584 | -8/Materials | Repaired Lgt. Treads 3600 | -8/Materials | Entered Factory 3600 | -7/Factory | Evolved 2 slots: Propulsion x1, Utility x1 3601 | -7/Factory | Caught up to 7R-MNS 4029 | -7/Factory | Build established: Scavenger-Tank 4762 | -7/Factory | Discovered new exit (range 11) 4858 | -7/Factory | Entered another Factory area 4858 | -6/Factory | Evolved 2 slots: Utility x2 4859 | -6/Factory | Caught up to 7R-MNS 5327 | -6/Factory | Build established: Tank 5338 | -6/Factory | Discovered new exit (range 6) 5518 | -6/Factory | Entered another Factory area 5518 | -5/Factory | Evolved 2 slots: Power x1, Utility x1 5519 | -5/Factory | Caught up to 7R-MNS 6123 | -5/Factory | Discovered new exit (range 4) 6175 | -5/Factory | Entered another Factory area 6175 | -4/Factory | Accompanied by 1 ally 6175 | -4/Factory | Evolved 2 slots: Propulsion x1, Weapon x1 6176 | -4/Factory | Caught up to 7R-MNS 6657 | -4/Factory | Attacked by 7R-MNS 6695 | -4/Factory | Destroyed 8 combat bots 8041 | -4/Factory | Spotted B-86 Titan 8094 | -4/Factory | Found Prototype Launcher 8094 | -4/Factory | Identified Com. Tesla Bomb Launcher 8425 | -4/Factory | First assault squad dispatched 8551 | -4/Factory | Destroyed 10 combat bots 8612 | -4/Factory | Identified exit to Upper Caves 8781 | -4/Factory | Build established: Gunner 8810 | -4/Factory | Entered Upper Caves 8829 | -4/Upper Caves | Found Alien Artifact 8829 | -4/Upper Caves | Identified Core Expander 8829 | -4/Upper Caves | Installed Core Expander, added new Utility slot 9103 | -4/Upper Caves | Attracted the attention of an 0b10 checkpoint 9218 | -4/Upper Caves | Build established: Tank 9404 | -4/Upper Caves | Discovered new exit (range 10) 9417 | -4/Upper Caves | Entered another Upper Caves area 9517 | -4/Upper Caves | Learned Research terminal intel 9717 | -4/Upper Caves | Identified exit to Research 9886 | -4/Upper Caves | Discovered new exit (range 15) 9962 | -4/Upper Caves | Entered Zhirov 9963 | -4/Zhirov | Discovered new exit (range 3) 9987 | -4/Zhirov | Met Zhirov 10008 | -4/Zhirov | Learned location of Quarantine (-3) 10008 | -4/Zhirov | Learned location of Testing (-2) 10008 | -4/Zhirov | Learned location of Command (-1) 10018 | -4/Zhirov | Zhirov requested help retrieving the SGEMP Prototype 10052 | -4/Zhirov | Found Alien Artifact 10052 | -4/Zhirov | Identified Integrated Dissipator 10052 | -4/Zhirov | Installed Integrated Dissipator, increased core heat dissipation (+20) 10119 | -4/Zhirov | Found Alien Artifact 10119 | -4/Zhirov | Identified Transdimensional Reconstructor 10119 | -4/Zhirov | Warped through subspace 10268 | -4/Zhirov | Build established: Mutant 10473 | -4/Zhirov | Entered Proximity Caves 10476 | -3/Proximity Caves | Spotter reported a threat 10591 | -3/Proximity Caves | Spotted B-86 Titan 10754 | -3/Proximity Caves | Build established: Tank 10891 | -3/Proximity Caves | System corruption reached 10% 11196 | -3/Proximity Caves | Discovered exit to Research (range 14) 11226 | -3/Proximity Caves | Entered Research 11226 | -3/Research | Evolved 2 slots: Power x1, Propulsion x1 11227 | -3/Research | Loaded intel: 21 terminal locations 11806 | -3/Research | Discovered new exit (range 5) 11900 | -3/Research | Entered Quarantine 12319 | -3/Quarantine | Found Alien Artifact 12319 | -3/Quarantine | Identified Core Reset Matrix 12319 | -3/Quarantine | Used Core Reset Matrix 12323 | -3/Quarantine | Detected hypermatrix surge 12323 | -3/Quarantine | Sensed 14 artifacts in vicinity 12499 | -3/Quarantine | Cryocooling Duct disabled 12501 | -3/Quarantine | Cryocooling Duct disabled 12514 | -3/Quarantine | Ambient heat levels rising (+20) 12514 | -3/Quarantine | Non-combat units ordered to evacuate 12516 | -3/Quarantine | Ambient heat levels rising (+20) 12516 | -3/Quarantine | Combat units ordered to evacuate 12613 | -3/Quarantine | Build established: Alien-Tank 12616 | -3/Quarantine | Quarantine Guard activated 12682 | -3/Quarantine | Spotted Quarantine Guard 12737 | -3/Quarantine | Spotted Quarantine Guard 12755 | -3/Quarantine | Destroyed Quarantine Guard 12759 | -3/Quarantine | Spotted Quarantine Guard 12761 | -3/Quarantine | Destroyed Quarantine Guard 12767 | -3/Quarantine | Destroyed Quarantine Guard 12873 | -3/Quarantine | Found Unknown Device 12873 | -3/Quarantine | Identified Quantum Capacitor 12894 | -3/Quarantine | Spotted Quarantine Guard 12941 | -3/Quarantine | Destroyed Quarantine Guard 12983 | -3/Quarantine | Destroyed Quarantine Guard 13372 | -3/Quarantine | Spotted Alpha 7 13487 | -3/Quarantine | Spotted Quarantine Guard 13490 | -3/Quarantine | Destroyed Quarantine Guard 13529 | -3/Quarantine | Spotted Quarantine Guard 13537 | -3/Quarantine | Destroyed Quarantine Guard 13561 | -3/Quarantine | Destroyed Quarantine Guard 13657 | -3/Quarantine | Spotted Quarantine Guard 13668 | -3/Quarantine | Destroyed Quarantine Guard 13976 | -3/Quarantine | Destroyed Quarantine Guard 14374 | -3/Quarantine | Found Sigix Broadsword 14508 | -3/Quarantine | Destroyed Quarantine Guard 14515 | -3/Quarantine | Discovered new exit (range 8) 15003 | -3/Quarantine | Found Unknown Launcher 15003 | -3/Quarantine | Identified Fusion Bomb Launcher 15218 | -3/Quarantine | System corruption reached 10% 15303 | -3/Quarantine | System corruption reached 30% 15599 | -3/Quarantine | Entered Research 15599 | -2/Research | Evolved 2 slots: Utility x1, Weapon x1 15604 | -2/Research | Build established: Scavenger-Tank 15829 | -2/Research | Identified exit to Garrison 15885 | -2/Research | Found Unknown Launcher 15885 | -2/Research | Identified Gamma Bomb Array 16257 | -2/Research | Build established: Alien-Tank 16270 | -2/Research | Destroyed 7 combat bots 16467 | -2/Research | Discovered new exit (range 14) 16520 | -2/Research | Entered Testing 16787 | -2/Testing | Spotted PP-6NTT55525A 17186 | -2/Testing | Found Prototype Ballistic Gun 17186 | -2/Testing | Identified Hyp. Multirail 17236 | -2/Testing | System corruption reached 10% 17438 | -2/Testing | Discovered new exit (range 6) 17462 | -2/Testing | Entered Access 17462 | -1/Access | Evolved 2 slots: Power x1, Utility x1 17764 | -1/Access | Build established: Generator-Tank 18376 | -1/Access | Found Gamma Bomb Array 18599 | -1/Access | Discovered new exit (range 4) 18962 | -1/Access | First assault squad dispatched 19524 | -1/Access | System corruption reached 10% 20315 | -1/Access | Destroyed 7 combat bots 22357 | -1/Access | Destroyed 7 combat bots 22572 | -1/Access | High security lockdown imminent 22612 | *** | Heading to fleet! Last Messages --------------- 22556_ R-10 Processor collects Corrupted Unknown Treads. 22558_ P-80 Master resets U-05 Engineer, system corruption cleaned. 22559_ R-10 Processor collects Corrupted Unknown Impact Weapon. 22562_ R-10 Processor collects Unknown Protection. 22564_ 1P /FYBJES2AOYT:JEKUN 22572_ P-80 Master destroyed. 22572_ ALERT: High security lockdown imminent, T-100. 22581_ Ended siege mode. 22584_ System corrupted: Energy discharge (-436). 22585_ Acquired 61 matter. 22596_ Acquired Unknown Protection. 22596_ Identified Hvy. Armor Plating. 22601_ System corrupted: Component data lost. [Achievement: Light Traveler] Map ----- +----------------------------------------------------+ | #????# " #??????????????????????????????? | | #????# """ #??????????????????????????????? | | #????# """ #??????????????????????????????? | | #????# " #??????????????????????????????? | | #????# #??????????????????????????????? | | #????# === #??????????????????????????????? | | #??????=== #??????????????????????????????? | | #??????== #??????????????????????????????? | | #?????? #############?###??#???????????? | | #??????? ## # ##! ##=#"??????????? | | ###########"###+###########################+#????? | | !== [ !*%%!!/ %%%%%% %=% % ?? | | !*% ! =%%%== %%%* t %?=%%%%!= ?? | | #+########"""""""####%=%== %############+#????? | | ????????? # #%% !%= = #= #??????????????? | | ????? # #= %! * #!##??????????????? | | """" #?? # # = = = # #???????????????? | | "S"" ##! # # [##????????????????? | | " "" !## "" #?# ##????????????????? | | ## "" #?# =% ##????????????????? | | ## """"""? #?"""" !="""""?????????????????? | | ] ## """""" #?# #?????????????????? | | ###???## ??"" #?# #?????????????????? | | ???????# ????" #?# """ "" #?????????????????? | | ?????????????? #?# " " #?????????????????? | | ???????????????? #?# " @" "? #?????????????????? | | ???????????????? #?# ?" "" "??#?????????????????? | | ???????????????? #?# ?" "????????????????????? | | ????????????????? ??# ?""""""????????????????????? | | ????????????????????#????????????????????????????? | | ?????????????????????????????????????????????????? | | ?????????????????????????????????????????????????? | | ?????????????????????????????????????????????????? | | ?????????????????????????????????????????????????? | | ?????????????????????????????????????????????????? | | ?????????????????????????????????????????????????? | | ?????????????????????????????????????????????????? | | ?????????????????????????????????????????????????? | | ?????????????????????????????????????????????????? | | ?????????????????????????????????????????????????? | | ?????????????????????????????????????????????????? | | ?????????????????????????????????????????????????? | | ?????????????????????????????????????????????????? | | ?????????????????????????????????????????????????? | | ?????????????????????????????????????????????????? | | ?????????????????????????????????????? ????????? | | ???????????????###+??????????????????? ??????? | | ????????????? ?????????????????? ??????? | | ??????????? #?????????????????# #??????? | | ?????????? #?????????????????# #??????? | +----------------------------------------------------+ Best States ------------- Heat Dissipation 109 Coolant Potential 100 Energy Generation 83 Energy Capacity 1545 Matter Stores 300 Matter Capacity 300 Sight Range 16 Robot Scan Range 16 Terrain Scan Range 16 Terrain Scan Density 210 Jamming Range 14 Armor Coverage 825 Resistance: KI 20 Core Shielding 30 Evasion (%) 40 Launcher Accuracy 40 Target Analysis 8 Core Analysis 6 Recoil Reduction 6 Energy Filtering 30 Defensive Hacking 12 Item Schematics ----------------- Cld. Phase Cannon | -3/Quarantine | Archive Gravity Neutralizer | -3/Quarantine | Archive Cld. Gravmag System | -3/Quarantine | Archive Exp. Matter Compressor | -3/Quarantine | Archive Particle Accelerator | -3/Quarantine | Archive Electron Diverter | -3/Quarantine | Archive Adv. Thermal Defense Suite | -3/Quarantine | Archive Hvy. Dispersion Rifle | -3/Quarantine | Archive Adv. Matter Compressor | -3/Quarantine | Archive Exp. Focal Shield | -3/Quarantine | Archive Hvy. Proton Cannon | -3/Quarantine | Archive Ionic Axe | -3/Quarantine | Archive Robot Schematics ------------------ R-06 Scavenger | -3/Quarantine | Archive S-43 Plague | -3/Quarantine | Archive A-15 Conveyor | -3/Quarantine | Archive A-02 Transporter | -3/Quarantine | Archive E-15 Imp | -3/Quarantine | Archive Fabricated ------------ Nothing Repaired ---------- Lgt. Treads | 34% | -8/Materials Alien Tech Used ----------------- Core Expander Integrated Dissipator Transdimensional Reconstructor Core Reset Matrix Sigix Broadsword Achievements -------------- Light Traveler Challenges ------------ Pure Core Game ------ Seed BackupLobotomyJetlance Manual? 0 Play Time 02:55:19 Cumulative 1214.9 hours Start 2025.07.26 @ 14:10:30 End 2025.07.26 @ 17:29:04 Sessions 1 Manual Loads 0 Difficulty Rogue Special Mode None Game No. 536 Rogue 535 Adventurer 1 Explorer 0 Win Type 2 Total 195 Types 56/16/31/5/2/1/76/3/3/2 Lore% 98 Gallery% 99 Achievement% 94 Wizard Run 0 Options --------- Layout 2 ASCII 0 Keyboard 1 Movement Numpad Keybinds 0 Fullscreen 0 Font 24/Terminus Map View 50x44 Zoom Use 0% Tactical HUD 1 Map Filters NONE Filters NONE Steam 1 RUN: 3df4e439-cac3-489e-9b24-dcd69336502a